fUST/lending_fUST_20240310
["ID","MTS","AMOUNT","RATE_DAILY","PERIOD"]
[318097383,1710067841657,-500.0,0.00022997,2]
[318097385,1710067841666,-538.80560307,0.00022997,2]
[318097387,1710067841675,-1888.43,0.00022997,2]
[318097389,1710067841683,-1888.43,0.00022997,2]
[318097391,1710067841693,-528.45,0.00022997,2]
[318097393,1710067841702,-528.45,0.00022997,2]
[318097395,1710067841711,-500.0,0.00022997,2]
[318097397,1710067841719,-500.0,0.00022997,2]
[318097399,1710067841729,-500.0,0.00022997,2]
[318097401,1710067841738,-1981.14,0.00022997,2]
[318097403,1710067841750,-1981.14,0.00022997,2]
[318097405,1710067841759,-286.90890676,0.00022998,2]
[318097407,1710067841768,-8510.53111567,0.00022998,2]
[318097409,1710067841777,-238.84175043,0.00022998,2]
[318097411,1710067841785,-745.65931905,0.00022998,2]
[318097413,1710067841794,-2597.41386237,0.00022998,2]
[318097415,1710067841803,-1606.73193015,0.00022998,2]
[318097417,1710067841813,-400.0,0.00022998,2]
[318097419,1710067841822,-310.16284114,0.00022998,2]
[318097421,1710067841831,-155.32564541,0.00022998,2]
[318097423,1710067841840,-402.20008438,0.00022998,2]
[318097425,1710067841850,-387.33593678,0.00022998,2]
[318097427,1710067841859,-310.26390682,0.00022998,2]
[318097429,1710067841868,-1886.49783361,0.00022998,2]
[318097431,1710067841878,-558.22747266,0.00022998,2]
[318097433,1710067841888,-47485.86650932,0.00022998,2]
[318097435,1710067841898,-219.0,0.00022998,2]
[318097437,1710067841907,-155.12565178,0.00022998,2]
[318097439,1710067841916,-179.62680185,0.00022998,2]
[318097441,1710067841926,-155.26576122,0.00022998,2]
[318097443,1710067841935,-1352.85424475,0.00022998,2]
[318097445,1710067841944,-179.62552417,0.00022998,2]
[318097447,1710067841954,-180.96284116,0.00022998,2]
[318097449,1710067841963,-243.17385658,0.00022998,2]
[318097451,1710067841973,-155.33253663,0.00022998,2]
[318097453,1710067841982,-624.13231565,0.00022998,2]
[318097455,1710067841991,-156.51043012,0.00022998,2]
[318097457,1710067842000,-197.88183459,0.00022998,2]
[318097459,1710067842010,-274.97926152,0.00022998,2]
[318097461,1710067842019,-155.36240938,0.00022998,2]
[318097463,1710067842028,-155.51366642,0.00022998,2]
[318097465,1710067842038,-155.58164802,0.00022998,2]
[318097467,1710067842047,-214.32734243,0.00022998,2]
[318097469,1710067842057,-279.90566539,0.00022998,2]
[318097471,1710067842066,-155.54874871,0.00022998,2]
[318097473,1710067842076,-166.14507047,0.00022998,2]
[318097476,1710067842086,-271.72472086,0.00022998,2]
[318097477,1710067842095,-191.7752714,0.00022998,2]
[318097479,1710067842105,-155.34759647,0.00022998,2]
[318097481,1710067842114,-527.6853655,0.00022998,2]
[318097483,1710067842123,-683.72377082,0.00022998,2]
[318097485,1710067842132,-172.35890153,0.00022998,2]
[318097487,1710067842142,-13290.17754601,0.00022998,2]
[318097490,1710067842152,-212.16339509,0.00022998,2]
[318097492,1710067842161,-207.09446127,0.00022998,2]
[318097494,1710067842170,-523.56833633,0.00022998,2]
[318097496,1710067842179,-873.82895411,0.00022998,2]
[318097497,1710067842188,-595.50695423,0.00022998,2]
[318097499,1710067842198,-155.28749657,0.00022998,2]
[318097501,1710067842207,-220.11643,0.00022998,2]
[318097504,1710067842216,-430.48394982,0.00022998,2]
[318097505,1710067842226,-1667.71816396,0.00022998,2]
[318097508,1710067842235,-157.24008052,0.00022998,2]
[318097509,1710067842244,-184.15936882,0.00022998,2]
[318097512,1710067842254,-225.77255675,0.00022998,2]
[318097513,1710067842263,-4915.26594559,0.00022998,2]
[318097516,1710067842272,-370.34539869,0.00022998,2]
[318097518,1710067842281,-641.75286297,0.00022998,2]
[318097520,1710067842290,-155.26887191,0.00022998,2]
[318097521,1710067842299,-290.43712849,0.00022998,2]
[318097523,1710067842308,-6288.02,0.00022998,2]
[318097525,1710067842317,-2988.56,0.00022998,2]
[318097527,1710067842326,-540.52,0.00022998,2]
[318097529,1710067842335,-758.41,0.00022998,2]
[318097532,1710067842345,-156.44,0.00022998,2]
[318097534,1710067842357,-1888.43,0.00022998,2]
[318097536,1710067842366,-528.45,0.00022998,2]
[318097538,1710067842376,-1981.14,0.00022998,2]
[318097540,1710067842385,-6288.02,0.00022999,2]
[318097542,1710067842396,-2988.56,0.00022999,2]
[318097543,1710067842405,-540.52,0.00022999,2]
[318097545,1710067842413,-758.41,0.00022999,2]
[318097547,1710067842422,-1840.64,0.00022999,2]
[318097549,1710067842431,-1888.43,0.00022999,2]
[318097551,1710067842440,-528.45,0.00022999,2]
[318097553,1710067842449,-500.0,0.00022999,2]
[318097555,1710067842459,-1981.14,0.00022999,2]
[318097558,1710067842469,-788.14421612,0.00023,2]
[318097560,1710067842479,-2005.58668639,0.00023,2]
[318097562,1710067842489,-10455.93539172,0.00023,2]
[318097564,1710067842498,-995.35275954,0.00023,10]
[318097565,1710067842507,-5070.32012844,0.00023,5]
[318097567,1710067842515,-10274.13392241,0.00023,2]
[318097569,1710067842524,-6600.0,0.00023,2]
[318097571,1710067842534,-814.10324471,0.00023,21]
[318097574,1710067842549,-1692.49057947,0.00023,21]
[318097576,1710067842559,-5989.2725292,0.00023,5]
[318097578,1710067842569,-5009.5214038,0.00023,2]
[318097580,1710067842578,-384.97088705,0.00023,2]
[318097725,1710067843918,-399.77321993,0.00023,2]
[318097727,1710067843928,-2000.0,0.00023,2]
[318097729,1710067843937,-1840.64,0.00023007,2]
[318097731,1710067843946,-500.0,0.00023007,2]
[318097733,1710067843955,-2000.0,0.0002301,2]
[318097735,1710067843964,-223.0,0.00023014,2]
[318097737,1710067843975,-268.867465,0.0002302,2]
[318097739,1710067843985,-782.19320272,0.0002302,2]
[318101002,1710068010053,39141.82001783,0.0002,2]
[318101007,1710068064141,154.93802379,0.000176,2]
[318101008,1710068069110,2207.53186615,0.0002,2]
[318101024,1710068758527,169.96563542,0.000189,2]
[318101027,1710068808528,251.61504562,0.0002,2]
[318101030,1710068841062,180.89857176,0.000199,2]
[318101070,1710069033020,-155.13030946,0.00020595,2]
[318101071,1710069033030,-155.13030946,0.00020595,2]
[318101072,1710069033040,-336.69909941,0.00020596,2]
[318101073,1710069033050,-280.54842491,0.00020597,2]
[318101075,1710069033059,-170.264845,0.00020853,2]
[318101076,1710069033069,-353.37014649,0.00021,2]
[318101078,1710069033078,-8247.0923253,0.00022,2]
[318101080,1710069033087,-160.0,0.00022,2]
[318101082,1710069033096,-1131.31202561,0.00022084,2]
[318101084,1710069033105,-173.322459,0.00022085,2]
[318101086,1710069033114,-174.846575,0.00022085,2]
[318101088,1710069033123,-158.315732,0.00022085,2]
[318101090,1710069033132,-159.532693,0.00022085,2]
[318101101,1710069033235,-160.0,0.00022192,2]
[318101103,1710069033245,-200.0,0.000222,2]
[318101105,1710069033255,-502.9227895,0.000222,2]
[318101107,1710069033265,-180.6819687,0.00022274,2]
[318101109,1710069033276,-654.68508278,0.0002244,2]
[318101111,1710069033287,-174.846575,0.00022453,2]
[318101113,1710069033300,-158.315732,0.00022637,2]
[318101115,1710069033311,-2531.07250731,0.00022698,2]
[318101117,1710069033321,-228.42219399,0.00022736,2]
[318101119,1710069033330,-357.06131894,0.00022736,2]
[318101121,1710069033340,-174.03434967,0.00022736,2]
[318101123,1710069033352,-164.72316867,0.00022736,2]
[318101126,1710069033362,-1000.0,0.00022736,7]
[318101128,1710069033372,-1000.0,0.00022736,7]
[318101129,1710069033381,-1000.0,0.00022736,7]
[318101131,1710069033391,-196.62530245,0.00022736,2]
[318101133,1710069033402,-4827.91270892,0.00022739,2]
[318101135,1710069033413,-500.0,0.00022739,2]
[318101138,1710069033423,-500.0,0.00022739,2]
[318101139,1710069033433,-500.0,0.00022739,2]
[318101142,1710069033444,-4500.82,0.00022791,2]
[318101145,1710069033467,-1610.56,0.00022791,2]
[318101147,1710069033477,-695.21,0.00022791,2]
[318101149,1710069033487,-547.28,0.00022791,2]
[318101151,1710069033499,-500.0,0.00022791,2]
[318101153,1710069033510,-500.0,0.00022791,2]
[318101155,1710069033521,-500.0,0.00022791,2]
[318101156,1710069033532,-500.0,0.00022791,2]
[318101157,1710069033543,-500.0,0.00022791,2]
[318101158,1710069033552,-212.33846165,0.00022791,2]
[318101159,1710069033567,-287.66153835,0.00022791,2]
[318101160,1710069033578,-500.0,0.00022791,2]
[318101161,1710069033588,-500.0,0.00022791,2]
[318101162,1710069033599,-500.0,0.00022791,2]
[318101163,1710069033609,-500.0,0.00022791,2]
[318101164,1710069033619,-552.59239974,0.00022791,2]
[318101165,1710069033629,-500.0,0.00022791,2]
[318101166,1710069033639,-500.0,0.00022791,2]
[318101167,1710069033649,-500.0,0.00022791,2]
[318101168,1710069033658,-500.0,0.00022791,2]
[318101169,1710069033669,-500.0,0.00022791,2]
[318101170,1710069033679,-500.0,0.00022791,2]
[318101171,1710069033691,-500.0,0.00022791,2]
[318101172,1710069033701,-500.0,0.00022791,2]
[318101173,1710069033711,-500.0,0.00022791,2]
[318101174,1710069033721,-500.0,0.00022791,2]
[318101175,1710069033735,-500.0,0.00022791,2]
[318101176,1710069033745,-500.0,0.00022791,2]
[318101177,1710069033755,-500.0,0.00022791,2]
[318101178,1710069033765,-500.0,0.00022791,2]
[318101179,1710069033776,-500.0,0.00022791,2]
[318101180,1710069033786,-500.0,0.00022791,2]
[318101181,1710069033796,-349.98108861,0.00022791,2]
[318101182,1710069033806,-500.0,0.00022791,2]
[318101183,1710069033818,-500.0,0.00022791,2]
[318101184,1710069033828,-137.35891133,0.00022792,2]
[318101239,1710069040630,-155.13030946,0.00020594,2]
[318101240,1710069040639,-500.0,0.00022791,2]
[318101241,1710069040649,-362.64108867,0.00022792,2]
[318101242,1710069040658,-498.22795125,0.00022792,2]
[318101243,1710069040667,-500.0,0.00022792,2]
[318101244,1710069040677,-500.0,0.00022792,2]
[318101245,1710069040687,-158.62994199,0.00022792,2]
[318101248,1710069040747,-341.37005801,0.00022792,2]
[318101249,1710069040757,-500.0,0.00022792,2]
[318101250,1710069040767,-500.0,0.00022792,2]
[318101251,1710069040778,-500.0,0.00022792,2]
[318101252,1710069040788,-500.0,0.00022792,2]
[318101253,1710069040800,-500.0,0.00022792,2]
[318101254,1710069040811,-500.0,0.00022792,2]
[318101255,1710069040823,-508.14721297,0.00022792,2]
[318101256,1710069040835,-5764.02,0.00022792,2]
[318101257,1710069040846,-500.0,0.00022792,2]
[318101258,1710069040859,-500.0,0.00022792,2]
[318101259,1710069040875,-506.43,0.00022792,2]
[318101260,1710069040888,-1809.74,0.00022792,2]
[318101261,1710069040900,-500.0,0.00022792,2]
[318101262,1710069040914,-1898.59,0.00022792,2]
[318101263,1710069040926,-492.47358261,0.00022792,2]
[318101264,1710069040938,-500.0,0.00022792,2]
[318101265,1710069040950,-500.0,0.00022793,2]
[318101266,1710069040962,-500.0,0.00022793,2]
[318101267,1710069040974,-500.0,0.00022793,2]
[318101268,1710069040985,-500.0,0.00022793,2]
[318101269,1710069040996,-502.36460615,0.00022793,2]
[318101270,1710069041008,-500.0,0.00022794,2]
[318101271,1710069041021,-538.80560307,0.00022794,2]
[318101272,1710069041032,-500.0,0.00022794,2]
[318101273,1710069041044,-4500.82,0.00022795,2]
[318101274,1710069041056,-1610.56,0.00022795,2]
[318101275,1710069041068,-695.21,0.00022795,2]
[318101276,1710069041081,-500.0,0.00022795,2]
[318101277,1710069041092,-500.0,0.00022795,2]
[318101278,1710069041104,-500.0,0.00022796,2]
[318101279,1710069041115,-502.23127857,0.00022796,2]
[318101280,1710069041126,-500.0,0.00022796,2]
[318101281,1710069041138,-500.0,0.00022796,2]
[318101282,1710069041150,-500.0,0.00022796,2]
[318101283,1710069041161,-500.0,0.00022796,2]
[318101284,1710069041173,-500.0,0.00022796,2]
[318101285,1710069041184,-500.0,0.00022796,2]
[318101286,1710069041194,-5764.02,0.00022796,2]
[318101287,1710069041203,-500.0,0.00022796,2]
[318101288,1710069041213,-500.0,0.00022796,2]
[318101289,1710069041224,-506.43,0.00022796,2]
[318101290,1710069041237,-1809.74,0.00022796,2]
[318101291,1710069041248,-500.0,0.00022796,2]
[318101292,1710069041260,-1898.59,0.00022796,2]
[318101293,1710069041271,-500.0,0.00022796,2]
[318101294,1710069041281,-500.0,0.00022797,2]
[318101295,1710069041292,-579.83709272,0.00022798,2]
[318101296,1710069041304,-156.44,0.00022798,2]
[318101297,1710069041314,-500.0,0.000228,2]
[318101298,1710069041324,-174.846575,0.00022821,2]
[318101299,1710069041334,-2000.0,0.000229,2]
[318101300,1710069041345,-410.62999853,0.00022908,2]
[318101301,1710069041357,-500.0,0.00022908,2]
[318101302,1710069041368,-184.71312434,0.00022908,2]
[318101303,1710069041379,-500.0,0.00022908,2]
[318101304,1710069041390,-500.0,0.00022908,2]
[318101305,1710069041401,-500.0,0.00022908,2]
[318101306,1710069041411,-500.0,0.00022908,2]
[318101307,1710069041422,-4500.82,0.00022909,2]
[318101308,1710069041432,-1610.56,0.00022909,2]
[318101309,1710069041441,-500.0,0.00022909,2]
[318101310,1710069041451,-500.0,0.00022909,2]
[318101311,1710069041460,-2000.0,0.0002291,2]
[318101312,1710069041473,-2000.0,0.0002292,2]
[318101313,1710069041485,-2000.0,0.0002293,2]
[318101314,1710069041498,-2000.0,0.0002294,2]
[318101315,1710069041509,-1102.26802674,0.0002295,2]
[318101336,1710069046696,-5545.69,0.00022792,2]
[318101337,1710069046707,-5545.69,0.00022796,2]
[318101338,1710069046719,-897.73197326,0.0002295,2]
[318101339,1710069046730,-500.0,0.00022957,2]
[318101340,1710069046741,-500.0,0.00022957,2]
[318101341,1710069046753,-500.0,0.00022957,2]
[318101342,1710069046763,-500.0,0.00022957,2]
[318101343,1710069046774,-247.18045082,0.00022957,2]
[318101344,1710069046784,-500.0,0.00022957,2]
[318101345,1710069046794,-500.0,0.00022957,2]
[318101346,1710069046804,-500.0,0.00022957,2]
[318101347,1710069046814,-500.0,0.00022957,2]
[318101349,1710069046826,-506.43,0.00022957,2]
[318101350,1710069046837,-1809.74,0.00022957,2]
[318101351,1710069046847,-500.0,0.00022957,2]
[318101352,1710069046857,-1898.59,0.00022957,2]
[318101353,1710069046867,-500.0,0.00022957,2]
[318101354,1710069046878,-5545.69,0.00022957,2]
[318101355,1710069046994,-695.21,0.00022959,2]
[318101356,1710069047010,-2000.0,0.0002296,2]
[318101357,1710069047020,-2000.0,0.0002297,2]
[318101358,1710069047030,-2000.0,0.0002298,2]
[318101359,1710069047039,-2000.0,0.0002299,2]
[318101360,1710069047047,-4500.82,0.00022994,2]
[318101361,1710069047057,-1610.56,0.00022994,2]
[318101362,1710069047068,-495.34251673,0.00022994,2]
[318101363,1710069047080,-54.42664487,0.00022994,2]
[318101364,1710069047090,-500.0,0.00022994,2]
[318101365,1710069047099,-102.23099751,0.00022996,2]
[318101366,1710069047111,-397.76900249,0.00022996,2]
[318101367,1710069047121,-500.0,0.00022996,2]
[318101368,1710069047130,-500.0,0.00022996,2]
[318101369,1710069047139,-648.24,0.00022996,2]
[318101370,1710069047149,-2302.46351644,0.00022996,2]
[318101466,1710070231904,-280.47329147,0.00021999,2]
[318101561,1710070238622,-0.07513344,0.00021999,2]
[318101562,1710070238631,-151.0,0.00022,2]
[318101563,1710070238643,-788.14388645,0.00022,2]
[318101564,1710070238652,-155.0,0.00022,2]
[318101565,1710070238662,-754.20801707,0.00022,2]
[318101566,1710070238671,-159.532693,0.00022085,2]
[318101567,1710070238680,-178.105199,0.00022085,2]
[318101568,1710070238690,-200.0,0.000222,2]
[318101569,1710070238699,-178.105199,0.00022453,2]
[318101570,1710070238709,-159.532693,0.00022637,2]
[318101571,1710070238718,-185.67443671,0.00022736,2]
[318101572,1710070238728,-153.02627954,0.00022736,2]
[318101573,1710070238737,-880.59399558,0.00022736,2]
[318101574,1710070238748,-23.35488248,0.00022736,2]
[318101575,1710070238758,-502.15582381,0.00022792,2]
[318101576,1710070238768,-500.0,0.00022792,2]
[318101577,1710070238777,-500.0,0.00022792,2]
[318101578,1710070238786,-208.50314655,0.00022792,2]
[318101579,1710070238795,-500.0,0.00022792,2]
[318101580,1710070238805,-500.0,0.00022796,2]
[318101581,1710070238815,-500.0,0.00022796,2]
[318101582,1710070238824,-500.0,0.00022796,2]
[318101583,1710070238833,-178.105199,0.00022821,2]
[318101584,1710070238842,-864.11839925,0.000229,2]
[318101585,1710070238854,-1135.88160075,0.000229,2]
[318101586,1710070238864,-153.0,0.000229,2]
[318101587,1710070238873,-306.6662802,0.000229,2]
[318101588,1710070238882,-2000.0,0.0002291,2]
[318101589,1710070238893,-412.20255235,0.00022919,2]
[318101590,1710070238902,-500.0,0.00022919,2]
[318101591,1710070238911,-594.88460803,0.00022919,2]
[318101592,1710070238924,-823.94539197,0.00022919,2]
[318101593,1710070238933,-2780.7,0.00022919,2]
[318101594,1710070238943,-751.67,0.00022919,2]
[318101595,1710070238952,-500.0,0.00022919,2]
[318101596,1710070238962,-1662.21,0.00022919,2]
[318101597,1710070238971,-500.0,0.00022919,2]
[318101598,1710070238981,-2000.0,0.0002292,2]
[318101599,1710070238991,-500.0,0.00022929,2]
[318101600,1710070239000,-500.0,0.00022929,2]
[318101601,1710070239022,-500.0,0.00022929,2]
[318101602,1710070239031,-500.0,0.00022929,2]
[318101603,1710070239041,-500.0,0.00022929,2]
[318101604,1710070239050,-500.0,0.00022929,2]
[318101605,1710070239062,-1661.27,0.00022929,2]
[318101606,1710070239072,-2000.0,0.0002293,2]
[318101607,1710070239085,-2000.0,0.0002294,2]
[318101608,1710070239094,-3654.74,0.00022949,2]
[318101609,1710070239104,-2000.0,0.0002295,2]
[318101610,1710070239114,-500.0,0.00022957,2]
[318101611,1710070239123,-500.0,0.00022957,2]
[318101613,1710070239133,-500.0,0.00022957,2]
[318101614,1710070239144,-2000.0,0.0002296,2]
[318101615,1710070239153,-2000.0,0.0002297,2]
[318101619,1710070239286,-2000.0,0.0002298,2]
[318101621,1710070239296,-2000.0,0.0002299,2]
[318101623,1710070239305,-500.0,0.00022994,2]
[318101625,1710070239314,-1418.83,0.00022994,2]
[318101627,1710070239324,-2780.7,0.00022994,2]
[318101629,1710070239333,-751.67,0.00022994,2]
[318101631,1710070239341,-500.0,0.00022994,2]
[318101633,1710070239350,-1662.21,0.00022994,2]
[318101635,1710070239359,-3654.74,0.00022994,2]
[318101636,1710070239368,-283.62137775,0.00022994,2]
[318101637,1710070239378,-500.0,0.00022994,2]
[318101638,1710070239386,-500.0,0.00022994,2]
[318101639,1710070239397,-316.6645654,0.00022994,2]
[318101640,1710070239405,-500.0,0.00022995,2]
[318101641,1710070239414,-500.0,0.00022995,2]
[318101642,1710070239423,-500.0,0.00022995,2]
[318101643,1710070239432,-500.0,0.00022995,2]
[318101644,1710070239442,-500.0,0.00022995,2]
[318101645,1710070239451,-307.9590999,0.00022995,2]
[318101646,1710070239461,-500.0,0.00022995,2]
[318101647,1710070239469,-151.0,0.00022995,2]
[318101648,1710070239478,-500.0,0.00022995,2]
[318101649,1710070239487,-500.0,0.00022995,2]
[318101650,1710070239495,-500.0,0.00022995,2]
[318101651,1710070239504,-4852.48,0.00022995,2]
[318101652,1710070239513,-500.0,0.00022995,2]
[318101653,1710070239522,-500.0,0.00022995,2]
[318101654,1710070239530,-500.0,0.00022995,2]
[318101655,1710070239539,-1661.27,0.00022995,2]
[318101656,1710070239548,-500.0,0.00022995,2]
[318101657,1710070239557,-500.0,0.00022995,2]
[318101658,1710070239566,-500.0,0.00022995,2]
[318101659,1710070239575,-425.73260742,0.00022995,2]
[318101660,1710070239584,-500.0,0.00022995,2]
[318101661,1710070239593,-500.0,0.00022995,2]
[318101662,1710070239603,-500.0,0.00022995,2]
[318101663,1710070239612,-500.0,0.00022995,2]
[318101664,1710070239621,-500.0,0.00022995,2]
[318101665,1710070239630,-990.05665748,0.00022996,2]
[318101666,1710070239639,-500.0,0.00022996,2]
[318101667,1710070239648,-500.0,0.00022996,2]
[318101668,1710070239658,-500.0,0.00022996,2]
[318101669,1710070239667,-15277.64824394,0.00022996,2]
[318101670,1710070239676,-500.0,0.00022998,2]
[318101671,1710070239685,-500.0,0.00022998,2]
[318101672,1710070239694,-500.0,0.00022998,2]
[318101673,1710070239702,-1418.83,0.00022998,2]
[318101674,1710070239712,-2780.7,0.00022998,2]
[318101675,1710070239720,-751.67,0.00022998,2]
[318101676,1710070239729,-500.0,0.00022998,2]
[318101677,1710070239738,-1662.21,0.00022998,2]
[318101678,1710070239747,-500.0,0.00022998,2]
[318101679,1710070239756,-305.4139373,0.00022998,2]
[318101680,1710070239765,-500.0,0.00022999,2]
[318101681,1710070239774,-500.0,0.00022999,2]
[318101682,1710070239782,-500.0,0.00022999,2]
[318101683,1710070239791,-500.0,0.00022999,2]
[318101684,1710070239800,-500.0,0.00022999,2]
[318101685,1710070239809,-151.0,0.00022999,2]
[318101686,1710070239818,-500.0,0.00022999,2]
[318101687,1710070239827,-4852.48,0.00022999,2]
[318101688,1710070239836,-500.0,0.00022999,2]
[318101689,1710070239847,-1418.83,0.00022999,2]
[318101690,1710070239857,-2780.7,0.00022999,2]
[318101691,1710070239866,-751.67,0.00022999,2]
[318101692,1710070239876,-500.0,0.00022999,2]
[318101693,1710070239885,-500.0,0.00022999,2]
[318101694,1710070239895,-1661.27,0.00022999,2]
[318101695,1710070239905,-1662.21,0.00022999,2]
[318101696,1710070239914,-500.0,0.00022999,2]
[318101697,1710070239923,-500.0,0.00022999,2]
[318101698,1710070239932,-500.0,0.00022999,2]
[318101699,1710070239941,-500.0,0.00022999,2]
[318101700,1710070239950,-500.0,0.00022999,2]
[318101701,1710070239961,-250.94705874,0.00022999,2]
[318101702,1710070239970,-3654.74,0.00022999,2]
[318101703,1710070239979,-500.0,0.00022999,2]
[318101704,1710070239988,-500.0,0.00022999,2]
[318101705,1710070239998,-2005.82107727,0.00023,2]
[318101706,1710070240008,-10456.44629534,0.00023,2]
[318101707,1710070240018,-944.40590766,0.00023,2]
[318101708,1710070240028,-19985.0,0.00023,2]
[318101709,1710070240037,-2000.0,0.00023,2]
[318101710,1710070240046,-2509.62823542,0.00023,21]
[318101711,1710070240056,-197.0,0.00023,2]
[318101712,1710070240070,-160.0,0.00023003,3]
[318101713,1710070240080,-2000.0,0.0002301,2]
[318101714,1710070240090,-160.0,0.00023014,2]
[318101715,1710070240099,-151.0,0.00023014,2]
[318101716,1710070240110,-3654.74,0.00023017,2]
[318101718,1710070240119,-500.0,0.00023018,2]
[318101719,1710070240128,-500.0,0.00023018,2]
[318101721,1710070240139,-500.0,0.00023018,2]
[318101723,1710070240148,-500.0,0.00023018,2]
[318101725,1710070240160,-151.0,0.00023018,2]
[318101726,1710070240169,-500.0,0.00023018,2]
[318101727,1710070240179,-4852.48,0.00023018,2]
[318101728,1710070240188,-500.0,0.00023018,2]
[318101729,1710070240198,-500.0,0.00023018,2]
[318101730,1710070240207,-1661.27,0.00023018,2]
[318101732,1710070240216,-500.0,0.00023018,2]
[318101733,1710070240226,-500.0,0.00023018,2]
[318101734,1710070240235,-500.0,0.00023018,2]
[318101736,1710070240245,-500.0,0.00023018,2]
[318101738,1710070240254,-500.0,0.00023018,2]
[318101739,1710070240264,-500.0,0.00023018,2]
[318101741,1710070240273,-500.0,0.00023018,2]
[318101743,1710070240283,-500.0,0.00023019,2]
[318101744,1710070240292,-2000.0,0.0002302,2]
[318101746,1710070240301,-500.0,0.0002302,2]
[318101747,1710070240310,-2000.0,0.0002303,2]
[318101748,1710070240319,-2000.0,0.0002304,2]
[318101749,1710070240328,-1418.83,0.00023046,2]
[318101750,1710070240338,-2780.7,0.00023046,2]
[318101751,1710070240347,-751.67,0.00023046,2]
[318101752,1710070240356,-500.0,0.00023046,2]
[318101753,1710070240365,-1662.21,0.00023046,2]
[318101754,1710070240375,-2000.0,0.0002305,2]
[318101755,1710070240384,-3654.74,0.00023058,2]
[318101756,1710070240394,-2000.0,0.0002306,2]
[318101757,1710070240403,-159.293966,0.00023064,2]
[318101758,1710070240412,-2883.092809,0.0002307,2]
[318101759,1710070240421,-500.0,0.00023098,2]
[318101760,1710070240430,-500.0,0.00023098,2]
[318101761,1710070240439,-500.0,0.00023098,2]
[318101762,1710070240448,-500.0,0.00023098,2]
[318101763,1710070240457,-151.0,0.00023098,2]
[318101764,1710070240466,-151.0,0.00023098,2]
[318101765,1710070240475,-4852.48,0.00023098,2]
[318101766,1710070240484,-500.0,0.00023098,2]
[318101767,1710070240494,-505.13052132,0.00023098,2]
[318101768,1710070240504,-500.0,0.00023098,2]
[318101769,1710070240513,-500.0,0.00023098,2]
[318101770,1710070240522,-500.0,0.00023098,2]
[318101771,1710070240532,-153.0,0.000231,2]
[318101772,1710070240541,-359.3431744,0.000231,2]
[318101773,1710070240550,-153.0,0.000231,2]
[318101774,1710070240559,-153.0,0.000231,2]
[318101775,1710070240568,-153.0,0.000231,2]
[318101776,1710070240577,-153.0,0.000231,2]
[318101777,1710070240591,-153.0,0.000231,2]
[318101778,1710070240636,-153.0,0.000231,2]
[318101779,1710070240646,-153.0,0.000231,2]
[318101780,1710070240657,-153.0,0.000231,2]
[318101781,1710070240667,-153.0,0.000231,2]
[318101782,1710070240677,-500.0,0.00023108,2]
[318101783,1710070240687,-451.54,0.00023108,2]
[318101784,1710070240697,-500.0,0.00023108,2]
[318101785,1710070240707,-1661.27,0.00023108,2]
[318101786,1710070240718,-166.058679,0.00023112,2]
[318101787,1710070240728,-159.532693,0.00023189,2]
[318101788,1710070240738,-319.065386,0.00023189,2]
[318101789,1710070240748,-474.947198,0.00023189,2]
[318101790,1710070240757,-174.846575,0.00023189,2]